[Event "EIRCC 2019"]
[Site "Tallinn"]
[Date "2019.12.05"]
[Round "6.28"]
[White "Mickevicius, Juras"]
[Black "Khalifman, Alexander"]
[Result "1-0"]
[ECO "A40"]
[WhiteElo "2288"]
[BlackElo "2577"]
[Annotator "ChessBase"]
[PlyCount "76"]
[EventDate "2019.12.05"]
[EventType "swiss"]
[EventCountry "EST"]
[SourceTitle "playchess.com"]
[Source "ChessBase"]
[SourceQuality "1"]
[TimeControl "900+10"]

1. d4 {[%emt 0:00:00]} g6 {[%emt 0:00:00]} 2. c4 {[%emt 0:00:00]} Bg7 {[%emt 0:00:00]} 3. Nf3 {[%emt 0:00:00]} Nf6 {[%emt 0:00:00]} 4. g3 {[%emt 0:00:00]} c5 {[%emt 0:00:02]} 5. d5 {[%emt 0:00:10]} b5 {[%emt 0:00:02]} 6. cxb5 {[%emt 0:00:10]} a6 {[%emt 0:00:02]} 7. bxa6 {[%emt 0:00:02]} d6 {[%emt 0:00:05]} 8. Nc3 {[%emt 0:00:06]} Bxa6 {[%emt 0:00:03]} 9. Bg2 {[%emt 0:00:03]} Nbd7 {[%emt 0:00:02]} 10. Rb1 {[%emt 0:00:02]} O-O {[%emt 0:00:17]} 11. O-O {[%emt 0:00:04]} Qa5 {[%emt 0:00:03]} 12. Bd2 {[%emt 0:00:12]} Rfb8 {[%emt 0:00:02]} 13. b3 {[%emt 0:00:05]} Qa3 {[%emt 0:02:55]} 14. Ne1 {[%emt 0:01:36]} Bb7 {[%emt 0:00:46]} 15. Nc2 {[%emt 0:00:22]} Qa6 {[%emt 0:00:26]} 16. a4 {[%emt 0:00:59]} Ne8 {[%emt 0:00:21]} 17. Nb5 {[%emt 0:00:41]} Qb6 {[%emt 0:00:44]} 18. Nca3 {[%emt 0:00:30]} Qd8 {[%emt 0:00:09]} 19. e4 {[%emt 0:00:13]} Nc7 {[%emt 0:00:08]} 20. Re1 {[%emt 0:00:19]} Nxb5 {[%emt 0:00:07]} 21. Nxb5 {[%emt 0:00:01]} Ba6 {[%emt 0:00:01]} 22. Bf1 {[%emt 0:00:02]} Rc8 {[%emt 0:02:40]} 23. Bc4 {[%emt 0:00:12]} Ne5 {[%emt 0:00:25]} 24. Kg2 {[%emt 0:00:33]} Qd7 {[%emt 0:00:33]} 25. h3 {[%emt 0:00:05]} f5 {[%emt 0:00:19]} 26. f4 {[%emt 0:00:25]} Nxc4 {[%emt 0:00:51]} 27. bxc4 {[%emt 0:00:02]} e6 {[%emt 0:00:24]} 28. Qc2 {[%emt 0:00:39]} Re8 {[%emt 0:02:54]} 29. Kh2 {[%emt 0:03:35]} Bc8 {[%emt 0:01:15]} 30. Bc3 {[%emt 0:02:46]} fxe4 {[%emt 0:00:43]} 31. Bxg7 {[%emt 0:00:03]} Kxg7 {[%emt 0:00:52]} 32. Rxe4 {[%emt 0:00:59]} e5 {[%emt 0:01:53]} 33. g4 {[%emt 0:00:47]} exf4 {[%emt 0:00:36]} 34. Qb2+ {[%emt 0:00:36]} Kh6 {[%emt 0:00:03]} 35. Rxe8 {[%emt 0:00:56]} Qxe8 {[%emt 0:00:02]} 36. Nc7 {[%emt 0:00:01]} Qe3 {[%emt 0:00:46]} 37. Nxa8 {[%emt 0:00:07]} Kg5 {[%emt 0:00:04]} 38. Rg1 {[%emt 0:00:23]} Kh4 {[%emt 0:00:27]} 1-0

[Event "EIRCC 2019"]
[Site "Tallinn"]
[Date "2019.12.05"]
[Round "6.29"]
[White "Babula, Vlastimil"]
[Black "Khakimov, Timur"]
[Result "0-1"]
[ECO "D45"]
[WhiteElo "2559"]
[BlackElo "2253"]
[Annotator "ChessBase"]
[PlyCount "80"]
[EventDate "2019.12.05"]
[EventType "swiss"]
[EventCountry "EST"]
[SourceTitle "playchess.com"]
[Source "ChessBase"]
[SourceQuality "1"]
[TimeControl "900+10"]

1. d4 {[%emt 0:00:00]} d5 {[%emt 0:00:00]} 2. c4 {[%emt 0:00:00]} c6 {[%emt 0:00:03]} 3. Nf3 {[%emt 0:00:02]} Nf6 {[%emt 0:00:03]} 4. Nc3 {[%emt 0:00:03]} e6 {[%emt 0:00:03]} 5. e3 {[%emt 0:00:16]} Nbd7 {[%emt 0:00:02]} 6. Qc2 {[%emt 0:00:04]} b6 {[%emt 0:00:02]} 7. b3 {[%emt 0:00:14]} Ba6 {[%emt 0:00:43]} 8. Bb2 {[%emt 0:00:31]} Bb4 {[%emt 0:00:17]} 9. Bd3 {[%emt 0:00:58]} O-O {[%emt 0:00:08]} 10. O-O {[%emt 0:00:04]} Rc8 {[%emt 0:00:10]} 11. Ne5 {[%emt 0:01:12]} c5 {[%emt 0:00:19]} 12. Ne2 {[%emt 0:00:36]} dxc4 {[%emt 0:00:32]} 13. bxc4 {[%emt 0:00:10]} cxd4 {[%emt 0:00:34]} 14. exd4 {[%emt 0:00:09]} b5 {[%emt 0:02:05]} 15. c5 {[%emt 0:00:17]} Nxe5 {[%emt 0:01:28]} 16. dxe5 {[%emt 0:00:04]} Rxc5 {[%emt 0:00:14]} 17. Qb1 {[%emt 0:00:19]} Ng4 {[%emt 0:00:37]} 18. Bd4 {[%emt 0:01:47]} Qh4 {[%emt 0:01:37]} 19. h3 {[%emt 0:00:09]} Nxe5 {[%emt 0:00:21]} 20. Qxb4 {[%emt 0:02:55]} Nxd3 {[%emt 0:04:09]} 21. Qa3 {[%emt 0:00:02]} Rc6 {[%emt 0:02:11]} 22. Qxd3 {[%emt 0:00:03]} b4 {[%emt 0:00:01]} 23. Qf3 {[%emt 0:00:02]} Rc2 {[%emt 0:01:12]} 24. Nf4 {[%emt 0:00:02]} Bxf1 {[%emt 0:00:04]} 25. Rxf1 {[%emt 0:00:02]} Rxa2 {[%emt 0:00:14]} 26. Bc5 {[%emt 0:03:37]} Rd8 {[%emt 0:00:06]} 27. g3 {[%emt 0:00:14]} Qf6 {[%emt 0:00:25]} 28. Qb7 {[%emt 0:00:27]} Ra1 {[%emt 0:00:33]} 29. Be7 {[%emt 0:00:07]} Rxf1+ {[%emt 0:00:09]} 30. Kxf1 {[%emt 0:00:08]} Qa1+ {[%emt 0:00:13]} 31. Kg2 {[%emt 0:00:08]} Re8 {[%emt 0:00:02]} 32. Qc6 {[%emt 0:01:57]} Rb8 {[%emt 0:00:05]} 33. Bd6 {[%emt 0:00:23]} Rd8 {[%emt 0:00:05]} 34. Qc7 {[%emt 0:00:10]} Re8 {[%emt 0:00:25]} 35. Bxb4 {[%emt 0:00:44]} Qa6 {[%emt 0:00:12]} 36. Kh2 {[%emt 0:00:27]} Qb6 {[%emt 0:00:16]} 37. Qxb6 {[%emt 0:00:04]} axb6 {[%emt 0:00:01]} 38. Kg2 {[%emt 0:00:06]} Rc8 {[%emt 0:00:10]} 39. Kf3 {[%emt 0:00:02]} Rc4 {[%emt 0:00:02]} 40. Nd3 {[%emt 0:00:03]} e5 {[%emt 0:00:05]} 0-1

[Event "EIRCC 2019"]
[Site "Tallinn"]
[Date "2019.12.05"]
[Round "6.30"]
[White "Heinzel, Olaf"]
[Black "Ruck, Robert"]
[Result "0-1"]
[ECO "A45"]
[WhiteElo "2269"]
[BlackElo "2551"]
[Annotator "ChessBase"]
[PlyCount "64"]
[EventDate "2019.12.05"]
[EventType "swiss"]
[EventCountry "EST"]
[SourceTitle "playchess.com"]
[Source "ChessBase"]
[SourceQuality "1"]
[TimeControl "900+10"]

1. d4 {[%emt 0:00:00]} Nf6 {[%emt 0:00:00]} 2. Bf4 {[%emt 0:00:00]} g6 {[%emt 0:00:00]} 3. e3 {[%emt 0:00:00]} Bg7 {[%emt 0:00:00]} 4. Be2 {[%emt 0:00:00]} c5 {[%emt 0:00:37]} 5. c3 {[%emt 0:00:00]} Qb6 {[%emt 0:00:02]} 6. Qb3 {[%emt 0:00:00]} O-O {[%emt 0:00:03]} 7. Nd2 {[%emt 0:00:03]} d6 {[%emt 0:00:07]} 8. h3 {[%emt 0:00:25]} Qc7 {[%emt 0:00:42]} 9. Ngf3 {[%emt 0:00:06]} b6 {[%emt 0:00:07]} 10. O-O {[%emt 0:00:06]} Nc6 {[%emt 0:00:17]} 11. Rfe1 {[%emt 0:00:21]} Be6 {[%emt 0:00:44]} 12. Qd1 {[%emt 0:00:09]} Rab8 {[%emt 0:00:16]} 13. a4 {[%emt 0:00:03]} Qb7 {[%emt 0:00:40]} 14. Bf1 {[%emt 0:00:11]} Rfc8 {[%emt 0:00:19]} 15. Bh2 {[%emt 0:00:28]} Na5 {[%emt 0:01:12]} 16. Qe2 {[%emt 0:00:46]} Bh6 {[%emt 0:01:42]} 17. Bf4 {[%emt 0:00:44]} Bxf4 {[%emt 0:01:18]} 18. exf4 {[%emt 0:00:02]} Re8 {[%emt 0:00:01]} 19. g3 {[%emt 0:03:02]} Rbc8 {[%emt 0:01:49]} 20. Bg2 {[%emt 0:00:14]} Qd7 {[%emt 0:01:37]} 21. Kh2 {[%emt 0:02:17]} Bd5 {[%emt 0:00:19]} 22. c4 {[%emt 0:06:31]} Bxf3 {[%emt 0:00:29]} 23. Qxf3 {[%emt 0:00:02]} cxd4 {[%emt 0:00:16]} 24. b3 {[%emt 0:00:17]} d5 {[%emt 0:02:18]} 25. cxd5 {[%emt 0:00:26]} Rc3 {[%emt 0:00:02]} 26. Qd1 {[%emt 0:00:08]} Nxd5 {[%emt 0:00:14]} 27. Ne4 {[%emt 0:00:16]} Rcc8 {[%emt 0:00:23]} 28. Qxd4 {[%emt 0:02:04]} Nxb3 {[%emt 0:00:34]} 29. Qd3 {[%emt 0:00:05]} Nxa1 {[%emt 0:00:15]} 30. Rxa1 {[%emt 0:00:02]} Red8 {[%emt 0:00:03]} 31. Rd1 {[%emt 0:00:03]} Qc7 {[%emt 0:00:07]} 32. Ng5 {[%emt 0:00:19]} Nc3 {[%emt 0:00:33]} 0-1

[Event "EIRCC 2019"]
[Site "Tallinn"]
[Date "2019.12.05"]
[Round "6.31"]
[White "Martynov, Roman"]
[Black "Potapov, Pavel"]
[Result "0-1"]
[ECO "A80"]
[WhiteElo "2269"]
[BlackElo "2482"]
[Annotator "ChessBase"]
[PlyCount "80"]
[EventDate "2019.12.05"]
[EventType "swiss"]
[EventCountry "EST"]
[SourceTitle "playchess.com"]
[Source "ChessBase"]
[SourceQuality "1"]
[TimeControl "900+10"]

1. d4 {[%emt 0:06:36]} f5 {[%emt 0:00:03]} 2. Nf3 {[%emt 0:00:02]} Nf6 {[%emt 0:00:02]} 3. g3 {[%emt 0:00:01]} g6 {[%emt 0:00:02]} 4. Bg2 {[%emt 0:00:01]} Bg7 {[%emt 0:00:01]} 5. O-O {[%emt 0:00:02]} O-O {[%emt 0:00:03]} 6. b3 {[%emt 0:00:08]} Ne4 {[%emt 0:00:12]} 7. Bb2 {[%emt 0:00:13]} d6 {[%emt 0:00:02]} 8. Nbd2 {[%emt 0:00:09]} Nc6 {[%emt 0:00:17]} 9. Ne1 {[%emt 0:00:13]} Ng5 {[%emt 0:00:12]} 10. Nc4 {[%emt 0:03:10]} f4 {[%emt 0:02:13]} 11. Nf3 {[%emt 0:02:28]} Nxf3+ {[%emt 0:00:28]} 12. Bxf3 {[%emt 0:00:35]} Bh3 {[%emt 0:00:18]} 13. Re1 {[%emt 0:00:01]} d5 {[%emt 0:00:07]} 14. Ne5 {[%emt 0:00:08]} Nxe5 {[%emt 0:00:21]} 15. dxe5 {[%emt 0:00:01]} e6 {[%emt 0:00:23]} 16. e3 {[%emt 0:00:39]} fxg3 {[%emt 0:00:16]} 17. hxg3 {[%emt 0:00:43]} Qg5 {[%emt 0:00:39]} 18. Bg2 {[%emt 0:00:18]} Bxg2 {[%emt 0:01:33]} 19. Kxg2 {[%emt 0:00:00]} Qf5 {[%emt 0:00:17]} 20. f4 {[%emt 0:00:41]} Qe4+ {[%emt 0:01:28]} 21. Kg1 {[%emt 0:00:00]} Rad8 {[%emt 0:00:41]} 22. Qe2 {[%emt 0:00:05]} c5 {[%emt 0:00:33]} 23. Rad1 {[%emt 0:00:22]} h5 {[%emt 0:00:25]} 24. c4 {[%emt 0:00:31]} dxc4 {[%emt 0:00:36]} 25. bxc4 {[%emt 0:00:01]} b6 {[%emt 0:00:16]} 26. Rd6 {[%emt 0:00:37]} Rxd6 {[%emt 0:01:51]} 27. exd6 {[%emt 0:00:01]} Bxb2 {[%emt 0:00:50]} 28. Qxb2 {[%emt 0:00:01]} Kf7 {[%emt 0:00:01]} 29. Qe5 {[%emt 0:00:25]} Qxe5 {[%emt 0:00:53]} 30. fxe5 {[%emt 0:00:01]} Ke8 {[%emt 0:00:04]} 31. Rf1 {[%emt 0:00:43]} Rxf1+ {[%emt 0:00:20]} 32. Kxf1 {[%emt 0:00:01]} g5 {[%emt 0:00:15]} 33. a4 {[%emt 0:00:00]} Kd7 {[%emt 0:00:16]} 34. Kg2 {[%emt 0:00:01]} a5 {[%emt 0:00:36]} 35. Kf3 {[%emt 0:00:49]} b5 {[%emt 0:00:35]} 36. cxb5 {[%emt 0:00:12]} c4 {[%emt 0:00:02]} 37. Ke4 {[%emt 0:00:46]} h4 {[%emt 0:00:10]} 38. gxh4 {[%emt 0:00:01]} gxh4 {[%emt 0:00:01]} 39. Kd4 {[%emt 0:00:21]} h3 {[%emt 0:00:13]} 40. Kc5 {[%emt 0:00:01]} h2 {[%emt 0:00:03]} 0-1

[Event "EIRCC 2019"]
[Site "Tallinn"]
[Date "2019.12.05"]
[Round "6.32"]
[White "Ionov, Sergey"]
[Black "Chernyak, Viktoria"]
[Result "1-0"]
[ECO "B12"]
[WhiteElo "2480"]
[BlackElo "2233"]
[Annotator "ChessBase"]
[PlyCount "97"]
[EventDate "2019.12.05"]
[EventType "swiss"]
[EventCountry "EST"]
[SourceTitle "playchess.com"]
[Source "ChessBase"]
[SourceQuality "1"]
[TimeControl "900+10"]

1. e4 {[%emt 0:01:28]} c6 {[%emt 0:00:01]} 2. d4 {[%emt 0:00:45]} d5 {[%emt 0:00:02]} 3. e5 {[%emt 0:00:02]} Bf5 {[%emt 0:00:15]} 4. h4 {[%emt 0:00:04]} h5 {[%emt 0:00:04]} 5. Bd3 {[%emt 0:00:02]} Bxd3 {[%emt 0:00:10]} 6. Qxd3 {[%emt 0:00:02]} e6 {[%emt 0:00:02]} 7. Bg5 {[%emt 0:00:03]} Qb6 {[%emt 0:00:32]} 8. Nd2 {[%emt 0:00:04]} Ne7 {[%emt 0:01:15]} 9. Ngf3 {[%emt 0:00:27]} Nf5 {[%emt 0:00:41]} 10. O-O {[%emt 0:00:19]} c5 {[%emt 0:00:21]} 11. c4 {[%emt 0:00:51]} Qa6 {[%emt 0:00:24]} 12. dxc5 {[%emt 0:03:35]} Bxc5 {[%emt 0:00:12]} 13. a3 {[%emt 0:00:01]} O-O {[%emt 0:00:53]} 14. b4 {[%emt 0:00:12]} dxc4 {[%emt 0:01:57]} 15. Nxc4 {[%emt 0:00:46]} Be7 {[%emt 0:01:32]} 16. Bxe7 {[%emt 0:00:31]} Nxe7 {[%emt 0:00:02]} 17. Ng5 {[%emt 0:00:36]} Nf5 {[%emt 0:00:06]} 18. Rac1 {[%emt 0:01:03]} Nc6 {[%emt 0:00:08]} 19. Qe4 {[%emt 0:02:12]} g6 {[%emt 0:00:54]} 20. Rfd1 {[%emt 0:00:52]} Rad8 {[%emt 0:00:26]} 21. Nd6 {[%emt 0:00:37]} Qxa3 {[%emt 0:01:11]} 22. b5 {[%emt 0:00:37]} Nce7 {[%emt 0:00:30]} 23. Qxb7 {[%emt 0:01:22]} Rb8 {[%emt 0:01:01]} 24. Qe4 {[%emt 0:00:15]} Rbd8 {[%emt 0:01:45]} 25. Ra1 {[%emt 0:00:58]} Qc5 {[%emt 0:00:21]} 26. Rdc1 {[%emt 0:00:20]} Qb6 {[%emt 0:00:05]} 27. Ra6 {[%emt 0:00:28]} Qb8 {[%emt 0:00:01]} 28. Qa4 {[%emt 0:00:23]} Nxd6 {[%emt 0:00:21]} 29. exd6 {[%emt 0:00:04]} Rxd6 {[%emt 0:00:02]} 30. Rxd6 {[%emt 0:00:27]} Qxd6 {[%emt 0:00:01]} 31. Qxa7 {[%emt 0:00:02]} Nd5 {[%emt 0:00:10]} 32. Qd4 {[%emt 0:00:19]} Rb8 {[%emt 0:00:26]} 33. Rc6 {[%emt 0:00:21]} Qd8 {[%emt 0:01:12]} 34. Qc5 {[%emt 0:00:11]} Qf6 {[%emt 0:02:07]} 35. g3 {[%emt 0:00:04]} Qa1+ {[%emt 0:00:04]} 36. Kg2 {[%emt 0:00:04]} Qa8 {[%emt 0:00:33]} 37. Kh2 {[%emt 0:00:26]} Nf6 {[%emt 0:00:08]} 38. Rc7 {[%emt 0:00:06]} Ng4+ {[%emt 0:00:01]} 39. Kg1 {[%emt 0:00:04]} Rf8 {[%emt 0:00:16]} 40. b6 {[%emt 0:00:06]} Qa1+ {[%emt 0:00:17]} 41. Kg2 {[%emt 0:00:01]} Qb2 {[%emt 0:00:47]} 42. b7 {[%emt 0:00:12]} Ne5 {[%emt 0:00:21]} 43. Qxf8+ {[%emt 0:00:24]} Kxf8 {[%emt 0:00:01]} 44. Rc8+ {[%emt 0:00:01]} Kg7 {[%emt 0:00:07]} 45. b8=Q {[%emt 0:00:02]} Qe2 {[%emt 0:00:19]} 46. Rg8+ {[%emt 0:00:07]} Kf6 {[%emt 0:00:01]} 47. Qb7 {[%emt 0:00:17]} Qe1 {[%emt 0:00:24]} 48. Rf8 {[%emt 0:00:15]} Kf5 {[%emt 0:00:02]} 49. Rxf7+ {[%emt 0:00:04]} 1-0

[Event "EIRCC 2019"]
[Site "Tallinn"]
[Date "2019.12.05"]
[Round "6.33"]
[White "D`costa, Lorin"]
[Black "Shapiro, Viktor"]
[Result "0-1"]
[ECO "A05"]
[WhiteElo "2407"]
[BlackElo "2231"]
[Annotator "NA"]
[PlyCount "134"]
[EventDate "2019.12.05"]
[EventType "swiss"]
[EventCountry "EST"]
[SourceTitle "playchess.com"]
[Source "ChessBase"]
[SourceQuality "1"]
[TimeControl "900+10"]

1. Nf3 {[%emt 0:01:14]} Nf6 {[%emt 0:03:47]} 2. g3 {[%emt 0:00:01]} g6 {[%emt 0:00:06]} 3. Bg2 {[%emt 0:00:01]} Bg7 {[%emt 0:00:01]} 4. c4 {[%emt 0:00:01]} O-O {[%emt 0:00:07]} 5. Nc3 {[%emt 0:00:02]} d5 {[%emt 0:00:09]} 6. cxd5 Nxd5 {[%emt 0:00:02]} 7. d4 {[%emt 0:00:11]} Nb6 {[%emt 0:00:45]} 8. O-O {[%emt 0:00:24]} Nc6 {[%emt 0:00:01]} 9. e3 {[%emt 0:00:08]} Re8 {[%emt 0:00:04]} 10. b3 {[%emt 0:00:13]} e5 {[%emt 0:00:58]} 11. Nxe5 {[%emt 0:00:27]} Nxe5 {[%emt 0:00:03]} 12. dxe5 {[%emt 0:00:01]} Bxe5 {[%emt 0:00:40]} 13. Bb2 {[%emt 0:00:07]} c6 {[%emt 0:00:08]} 14. Qc2 {[%emt 0:00:16]} Be6 {[%emt 0:02:25]} 15. Rad1 {[%emt 0:00:29]} Qe7 {[%emt 0:00:12]} 16. f4 {[%emt 0:01:41]} Bg7 {[%emt 0:00:17]} 17. e4 {[%emt 0:00:57]} Rad8 {[%emt 0:01:13]} 18. h3 {[%emt 0:04:13]} Qc5+ {[%emt 0:02:10]} 19. Qf2 {[%emt 0:00:02]} Bd4 {[%emt 0:00:58]} 20. Rxd4 {[%emt 0:00:01]} Qxd4 {[%emt 0:00:01]} 21. Qxd4 {[%emt 0:00:15]} Rxd4 {[%emt 0:00:01]} 22. Nd5 {[%emt 0:00:04]} Rxd5 {[%emt 0:00:28]} 23. exd5 {[%emt 0:00:01]} Bxd5 {[%emt 0:00:01]} 24. Bxd5 {[%emt 0:02:34]} Nxd5 {[%emt 0:00:02]} 25. Kf2 {[%emt 0:01:12]} f6 {[%emt 0:00:17]} 26. Bd4 {[%emt 0:00:15]} Kf7 {[%emt 0:00:10]} 27. Rc1 {[%emt 0:00:10]} a6 {[%emt 0:00:14]} 28. Kf3 {[%emt 0:00:09]} Nb4 {[%emt 0:01:06]} 29. a3 {[%emt 0:00:05]} Nd5 {[%emt 0:00:01]} 30. g4 {[%emt 0:00:03]} Nc7 {[%emt 0:00:43]} 31. Bb2 {[%emt 0:00:15]} Rd8 {[%emt 0:00:07]} 32. Ke2 {[%emt 0:00:09]} Ne6 {[%emt 0:00:12]} 33. Rc4 {[%emt 0:00:08]} g5 {[%emt 0:00:03]} 34. fxg5 {[%emt 0:00:04]} fxg5 {[%emt 0:00:01]} 35. Be5 {[%emt 0:00:41]} Rd5 {[%emt 0:00:13]} 36. Re4 {[%emt 0:00:01]} Nc5 {[%emt 0:00:16]} 37. Re3 {[%emt 0:00:01]} Nxb3 {[%emt 0:00:14]} 38. Rf3+ {[%emt 0:00:24]} Ke6 {[%emt 0:00:13]} 39. Bh8 {[%emt 0:00:13]} Nd4+ {[%emt 0:00:23]} 40. Bxd4 {[%emt 0:00:02]} Rxd4 {[%emt 0:00:01]} 41. Rf5 {[%emt 0:00:06]} Rd5 {[%emt 0:00:10]} 42. Rf8 {[%emt 0:00:02]} Re5+ {[%emt 0:00:56]} 43. Kd2 {[%emt 0:00:21]} Kd6 {[%emt 0:00:48]} 44. Rf6+ {[%emt 0:00:17]} Re6 {[%emt 0:00:07]} 45. Rf7 {[%emt 0:00:02]} Re7 {[%emt 0:00:09]} 46. Rf5 {[%emt 0:00:06]} h6 {[%emt 0:00:11]} 47. Kd3 {[%emt 0:00:09]} c5 {[%emt 0:00:12]} 48. a4 {[%emt 0:00:27]} b5 {[%emt 0:00:12]} 49. a5 {[%emt 0:00:12]} Re6 {[%emt 0:00:17]} 50. Rf7 {[%emt 0:00:04]} Kd5 {[%emt 0:00:10]} 51. Rb7 {[%emt 0:00:17]} b4 {[%emt 0:00:22]} 52. Kd2 {[%emt 0:00:09]} Rf6 {[%emt 0:00:19]} 53. Ke3 {[%emt 0:00:07]} Re6+ {[%emt 0:00:19]} 54. Kd2 {[%emt 0:00:01]} Rd6 {[%emt 0:00:12]} 55. Kc2 {[%emt 0:00:06]} Kc4 {[%emt 0:00:10]} 56. Rb6 {[%emt 0:00:06]} b3+ {[%emt 0:00:04]} 57. Kb2 {[%emt 0:00:11]} Rd2+ {[%emt 0:00:03]} 58. Kc1 Rc2+ {[%emt 0:00:11]} 59. Kb1 {[%emt 0:00:02]} Kc3 {[%emt 0:00:13]} 60. Rf6 {[%emt 0:01:32]} Rd2 {[%emt 0:00:09]} 61. Rf3+ {[%emt 0:00:13]} Rd3 {[%emt 0:00:03]} 62. Rf1 {[%emt 0:00:02]} Rxh3 {[%emt 0:00:07]} 63. Rg1 {[%emt 0:00:14]} c4 {[%emt 0:00:11]} 64. Re1 {[%emt 0:00:03]} Rh2 {[%emt 0:00:09]} 65. Re3+ {[%emt 0:00:04]} Kb4 {[%emt 0:00:06]} 66. Re6 {[%emt 0:00:03]} Ka3 {[%emt 0:00:12]} 67. Re1 {[%emt 0:00:05]} c3 {[%emt 0:00:12]} 0-1

[Event "EIRCC 2019"]
[Site "Tallinn"]
[Date "2019.12.05"]
[Round "6.34"]
[White "Krivenko, Sergey"]
[Black "Vlassow, Valentin"]
[Result "0-1"]
[ECO "D25"]
[WhiteElo "2233"]
[BlackElo "2394"]
[Annotator "NA"]
[PlyCount "88"]
[EventDate "2019.12.05"]
[EventType "swiss"]
[EventCountry "EST"]
[SourceTitle "playchess.com"]
[Source "ChessBase"]
[SourceQuality "1"]
[TimeControl "900+10"]

1. d4 {[%emt 0:00:00]} d5 {[%emt 0:00:00]} 2. c4 {[%emt 0:00:00]} dxc4 {[%emt 0:00:00]} 3. Nf3 {[%emt 0:00:00]} Nf6 {[%emt 0:00:00]} 4. e3 {[%emt 0:00:00]} Bg4 {[%emt 0:00:00]} 5. Bxc4 {[%emt 0:00:00]} e6 {[%emt 0:00:00]} 6. Nc3 {[%emt 0:00:20]} Nc6 {[%emt 0:00:02]} 7. Be2 {[%emt 0:00:03]} Bd6 {[%emt 0:00:04]} 8. Nd2 {[%emt 0:00:11]} Bxe2 {[%emt 0:00:16]} 9. Qxe2 {[%emt 0:00:01]} O-O {[%emt 0:00:32]} 10. O-O {[%emt 0:00:04]} e5 {[%emt 0:00:56]} 11. d5 {[%emt 0:00:08]} Ne7 {[%emt 0:00:02]} 12. e4 {[%emt 0:00:01]} c6 {[%emt 0:00:19]} 13. dxc6 {[%emt 0:00:11]} Nxc6 {[%emt 0:00:01]} 14. Nf3 {[%emt 0:00:01]} Nd4 {[%emt 0:01:38]} 15. Qd1 {[%emt 0:00:01]} Bb4 {[%emt 0:00:53]} 16. Bg5 {[%emt 0:00:05]} Nxf3+ {[%emt 0:01:47]} 17. Qxf3 {[%emt 0:00:08]} Bxc3 {[%emt 0:00:02]} 18. bxc3 {[%emt 0:00:05]} Qe7 {[%emt 0:00:43]} 19. Rfd1 {[%emt 0:00:11]} Rfd8 {[%emt 0:00:03]} 20. Rxd8+ {[%emt 0:00:04]} Rxd8 {[%emt 0:00:01]} 21. Rd1 {[%emt 0:00:02]} Rxd1+ {[%emt 0:00:44]} 22. Qxd1 {[%emt 0:00:03]} Qd7 {[%emt 0:00:08]} 23. Qxd7 {[%emt 0:00:05]} Nxd7 {[%emt 0:00:01]} 24. Be3 {[%emt 0:00:01]} Kf8 {[%emt 0:02:21]} 25. Kf1 {[%emt 0:03:14]} Ke7 {[%emt 0:00:01]} 26. Ke2 {[%emt 0:00:20]} Kd6 {[%emt 0:00:02]} 27. Kd3 {[%emt 0:00:57]} Nc5+ {[%emt 0:01:32]} 28. Kc4 {[%emt 0:00:07]} Nxe4 {[%emt 0:00:02]} 29. Bxa7 {[%emt 0:00:15]} Kc6 {[%emt 0:00:02]} 30. f3 {[%emt 0:01:16]} Nd6+ {[%emt 0:00:10]} 31. Kb4 {[%emt 0:00:19]} Kd5 {[%emt 0:01:01]} 32. Bb8 {[%emt 0:04:29]} Nc4 {[%emt 0:00:10]} 33. Kb5 {[%emt 0:00:23]} f5 {[%emt 0:00:56]} 34. a4 {[%emt 0:00:09]} e4 {[%emt 0:01:45]} 35. fxe4+ {[%emt 0:00:04]} fxe4 {[%emt 0:00:02]} 36. Bf4 {[%emt 0:00:15]} h6 {[%emt 0:01:24]} 37. h4 {[%emt 0:00:33]} h5 {[%emt 0:00:02]} 38. Bg5 {[%emt 0:01:23]} e3 {[%emt 0:02:12]} 39. Bxe3 {[%emt 0:00:02]} Nxe3 {[%emt 0:00:01]} 40. Kb6 {[%emt 0:00:01]} Nxg2 {[%emt 0:00:08]} 41. Kxb7 {[%emt 0:00:02]} Nxh4 {[%emt 0:00:03]} 42. a5 {[%emt 0:00:03]} Nf5 {[%emt 0:00:01]} 43. Kc7 {[%emt 0:00:42]} Ne7 {[%emt 0:00:12]} 44. c4+ {[%emt 0:00:52]} Kc5 {[%emt 0:00:03]} 0-1

[Event "EIRCC 2019"]
[Site "Tallinn"]
[Date "2019.12.05"]
[Round "6.35"]
[White "Sysolyatin, Evgeny"]
[Black "Kourousis, Epaminondas"]
[Result "0-1"]
[ECO "B30"]
[WhiteElo "2231"]
[BlackElo "2392"]
[Annotator "NA"]
[PlyCount "76"]
[EventDate "2019.12.05"]
[EventType "swiss"]
[EventCountry "EST"]
[SourceTitle "playchess.com"]
[Source "ChessBase"]
[SourceQuality "1"]
[TimeControl "900+10"]

1. e4 {[%emt 0:00:00]} c5 {[%emt 0:00:00]} 2. Nf3 {[%emt 0:00:00]} Nc6 {[%emt 0:00:00]} 3. Bb5 {[%emt 0:00:00]} e6 {[%emt 0:00:23]} 4. Bxc6 {[%emt 0:00:02]} bxc6 {[%emt 0:00:02]} 5. O-O {[%emt 0:00:05]} Ne7 {[%emt 0:00:14]} 6. h4 {[%emt 0:01:46]} h5 {[%emt 0:00:32]} 7. d4 {[%emt 0:01:01]} cxd4 {[%emt 0:00:13]} 8. Qxd4 {[%emt 0:00:02]} Ng6 {[%emt 0:00:14]} 9. g3 {[%emt 0:00:12]} Qb6 {[%emt 0:01:24]} 10. Nc3 {[%emt 0:03:18]} e5 {[%emt 0:02:01]} 11. Qd2 {[%emt 0:01:31]} Be7 {[%emt 0:00:31]} 12. b3 {[%emt 0:00:01]} O-O {[%emt 0:00:32]} 13. Bb2 {[%emt 0:00:02]} d6 {[%emt 0:02:57]} 14. Nh2 {[%emt 0:03:41]} f5 {[%emt 0:01:50]} 15. Na4 {[%emt 0:00:02]} Qc7 {[%emt 0:03:23]} 16. Qe2 {[%emt 0:00:03]} fxe4 {[%emt 0:00:18]} 17. Qxh5 {[%emt 0:00:02]} Bf5 {[%emt 0:00:54]} 18. Bc1 {[%emt 0:01:40]} Nh8 {[%emt 0:01:53]} 19. Be3 {[%emt 0:00:31]} g6 {[%emt 0:00:18]} 20. Qe2 {[%emt 0:00:04]} Rf7 {[%emt 0:00:14]} 21. Ng4 {[%emt 0:00:52]} Kh7 {[%emt 0:00:12]} 22. c4 {[%emt 0:01:55]} Qd7 {[%emt 0:00:07]} 23. Nh2 {[%emt 0:00:45]} Bh3 {[%emt 0:00:13]} 24. Rfd1 {[%emt 0:00:03]} Raf8 {[%emt 0:00:07]} 25. Nc3 {[%emt 0:00:33]} Qf5 {[%emt 0:00:12]} 26. Qc2 {[%emt 0:00:08]} Qh5 {[%emt 0:00:22]} 27. Qxe4 {[%emt 0:00:25]} Kg8 {[%emt 0:00:11]} 28. Qxc6 {[%emt 0:00:20]} g5 {[%emt 0:00:11]} 29. hxg5 {[%emt 0:00:23]} Bxg5 {[%emt 0:00:06]} 30. Bxg5 {[%emt 0:00:06]} Rxf2 {[%emt 0:00:07]} 31. Qd5+ {[%emt 0:00:07]} Kg7 {[%emt 0:00:03]} 32. Bh4 {[%emt 0:00:25]} Rg2+ {[%emt 0:00:22]} 33. Kh1 {[%emt 0:00:02]} Rff2 {[%emt 0:00:07]} 34. Nf1 {[%emt 0:00:03]} Bg4 {[%emt 0:00:15]} 35. Qb7+ {[%emt 0:00:14]} Nf7 {[%emt 0:00:08]} 36. Rd3 {[%emt 0:00:12]} Qf5 37. Re3 {[%emt 0:00:12]} Rxf1+ {[%emt 0:00:13]} 38. Rxf1 {[%emt 0:00:02]} Qxf1# {[%emt 0:00:01]} 0-1